bitfinex/quotes_BTCUSD_20251215
["timestamp","ask_amount","ask_price","bid_price","bid_amount"]
[1765805734012,0.51696757,89379.0,89378.0,0.00066647]
[1765805736997,0.51596757,89379.0,89378.0,0.00066647]
[1765805737201,0.51796757,89379.0,89378.0,0.00066647]
[1765805737403,0.51996757,89379.0,89378.0,0.00066647]
[1765805740386,0.57583744,89379.0,89378.0,0.00066647]
[1765805740589,0.67826596,89379.0,89378.0,0.00066647]
[1765805740795,0.57583744,89379.0,89378.0,0.00066647]
[1765805741382,0.57383744,89379.0,89378.0,0.00066647]
[1765805742435,0.57183744,89379.0,89378.0,0.00066647]
[1765805742856,0.57483744,89379.0,89378.0,0.00066647]
[1765805743765,0.57783744,89379.0,89378.0,0.00066647]
[1765805746459,0.57783744,89379.0,89378.0,0.00066647]
[1765805749859,0.57783744,89379.0,89362.0,0.0002]
[1765805749861,0.11124003,89363.0,89362.0,0.0002]
[1765805750083,0.55303748,89363.0,89362.0,0.0002]
[1765805750301,0.53218627,89363.0,89362.0,0.0002]
[1765805753147,0.53318627,89363.0,89362.0,0.0002]
[1765805754924,0.58905614,89363.0,89362.0,0.0002]
[1765805755574,0.58905614,89363.0,89362.0,0.00068485]
[1765805756644,0.53318627,89363.0,89362.0,0.00068485]
[1765805758468,0.6444263,89363.0,89362.0,0.00068485]
[1765805761398,0.6434263,89363.0,89362.0,0.00068485]
[1765805761664,0.6454263,89363.0,89362.0,0.00068485]
[1765805761823,0.6474263,89363.0,89362.0,0.00068485]
[1765805762442,0.53618627,89363.0,89362.0,0.00068485]
[1765805763848,0.59205614,89363.0,89362.0,0.00068485]
[1765805764080,0.53618627,89363.0,89362.0,0.00068485]
[1765805765607,0.22780627,89363.0,89362.0,0.00068485]
[1765805766168,0.51850627,89363.0,89362.0,0.09555357]
[1765805766568,0.51650627,89363.0,89362.0,0.09555357]
[1765805766773,0.51450627,89363.0,89362.0,0.09555357]
[1765805766978,0.51650627,89363.0,89362.0,0.09555357]
[1765805767183,0.51850627,89363.0,89362.0,0.09555357]
[1765805770651,0.51450627,89363.0,89362.0,0.09555357]
[1765805771062,0.51750627,89363.0,89362.0,0.09555357]
[1765805771474,0.51550627,89363.0,89362.0,0.09555357]
[1765805771716,0.51450627,89363.0,89362.0,0.09555357]
[1765805771930,0.51550627,89363.0,89362.0,0.09555357]
[1765805772137,0.51650627,89363.0,89362.0,0.09555357]
[1765805785949,0.51650627,89363.0,89362.0,0.00068485]
[1765805786376,0.55011088,89363.0,89362.0,0.00068485]
[1765805790076,0.66135091,89363.0,89362.0,0.00068485]
[1765805792606,0.66175091,89363.0,89362.0,0.00068485]
[1765805796201,0.55051088,89363.0,89362.0,0.00068485]
[1765805796618,0.60638075,89363.0,89362.0,0.00068485]
[1765805796822,0.55051088,89363.0,89362.0,0.00068485]
[1765805797691,0.67943091,89363.0,89362.0,0.00068485]
[1765805799162,0.56819088,89363.0,89362.0,0.00068485]
[1765805801612,0.62406075,89363.0,89362.0,0.00068485]
[1765805802834,0.56819088,89363.0,89362.0,0.00068485]
[1765805803640,0.62406075,89363.0,89362.0,0.00068485]
[1765805804081,0.56819088,89363.0,89362.0,0.00068485]
[1765805805624,0.55051088,89363.0,89362.0,0.00068485]
[1765805805824,0.56819088,89363.0,89362.0,0.00068485]
[1765805806268,0.7294493,89363.0,89362.0,0.00068485]
[1765805806493,0.62406075,89363.0,89362.0,0.00068485]
[1765805807277,0.62306075,89363.0,89362.0,0.00068485]
[1765805807695,0.62406075,89363.0,89362.0,0.00068485]
[1765805808026,0.62706075,89363.0,89362.0,0.00068485]
[1765805809381,0.68243091,89363.0,89362.0,0.00068485]
[1765805813135,0.78078573,89363.0,89362.0,0.00068485]
[1765805813347,0.78078573,89363.0,89357.0,1e-08]
[1765805813348,0.56453718,89358.0,89357.0,1e-08]
[1765805813564,0.58847679,89358.0,89357.0,1e-08]
[1765805813802,0.58221718,89358.0,89357.0,1e-08]
[1765805814009,0.63808705,89358.0,89357.0,1e-08]
[1765805814214,0.58221718,89358.0,89357.0,1e-08]
[1765805814416,0.69345721,89358.0,89357.0,1e-08]
[1765805814592,0.5707714,89358.0,89357.0,1e-08]
[1765805814935,0.53658153,89358.0,89357.0,1e-08]
[1765805815393,0.53958153,89358.0,89357.0,1e-08]
[1765805815607,0.65082156,89358.0,89357.0,1e-08]
[1765805816238,0.65082156,89358.0,89325.0,0.0002]
[1765805816239,0.22389897,89326.0,89325.0,0.0002]
[1765805817402,0.22389897,89326.0,89325.0,0.11144003]
[1765805817630,0.22528148,89326.0,89325.0,0.0002]
[1765805818251,0.22528148,89326.0,89325.0,0.0022]
[1765805818748,0.22528148,89326.0,89325.0,0.11344003]
[1765805820746,0.22528148,89326.0,89325.0,0.0022]
[1765805821152,0.22528148,89326.0,89325.0,0.11456181]
[1765805822212,0.00138251,89326.0,89325.0,0.11456181]
[1765805823082,0.00138251,89326.0,89325.0,0.0981905]
[1765805827017,0.00138251,89326.0,89325.0,0.20943053]
[1765805827870,0.22528148,89326.0,89325.0,0.20943053]
[1765805829061,0.00138251,89326.0,89325.0,0.20943053]
[1765805829753,0.00138251,89326.0,89325.0,0.0981905]
[1765805829988,0.00138251,89326.0,89325.0,0.43333201]
[1765805831061,0.00138251,89326.0,89325.0,0.45101201]
[1765805832136,0.00138251,89326.0,89325.0,1.44901201]
[1765805832363,0.00038251,89326.0,89325.0,1.44901201]
[1765805832568,0.00038251,89326.0,89325.0,1.4990304]
[1765805832753,0.00138251,89326.0,89325.0,1.4990304]
[1765805833007,0.00138251,89326.0,89325.0,1.7897304]
[1765805833853,0.00138251,89326.0,89325.0,1.7927304]
[1765805834241,0.00038251,89326.0,89325.0,1.7897304]
[1765805834794,0.00238251,89326.0,89325.0,1.7977304]
[1765805836616,0.00238251,89326.0,89325.0,1.2938504]
[1765805837014,0.00238251,89326.0,89325.0,0.43933201]
[1765805837185,0.00238251,89326.0,89325.0,0.45701201]
[1765805837403,0.00238251,89326.0,89325.0,0.43933201]
[1765805837605,0.00238251,89326.0,89325.0,0.45701201]
[1765805838191,0.00138251,89326.0,89325.0,0.44901201]
[1765805838397,0.00138251,89326.0,89325.0,0.22511053]
[1765805838607,0.00138251,89326.0,89325.0,0.11956181]
[1765805838799,0.02223372,89326.0,89325.0,0.00832178]
[1765805839072,0.02323372,89326.0,89325.0,0.11956181]
[1765805839485,0.02323372,89326.0,89325.0,0.00832178]
[1765805839486,0.02373509,89326.0,89325.0,0.00832178]
[1765805839875,0.02473509,89326.0,89325.0,0.00832178]
[1765805840082,0.02373509,89326.0,89325.0,0.00132178]
[1765805840524,0.02473509,89326.0,89325.0,0.00832178]
[1765805841138,0.02373509,89326.0,89325.0,0.00132178]
[1765805841296,0.02273509,89326.0,89325.0,0.00132178]
[1765805841493,0.02273509,89326.0,89325.0,0.00332178]
[1765805841886,0.02373509,89326.0,89325.0,0.00332178]
[1765805842888,0.00288388,89326.0,89325.0,0.00332178]
[1765805843687,0.00288388,89326.0,89325.0,0.11456181]
[1765805844374,0.00288388,89326.0,89325.0,0.00332178]
[1765805852852,0.001,89326.0,89325.0,0.00377817]
[1765805853290,0.001,89326.0,89325.0,0.1150182]
[1765805853498,0.001,89326.0,89325.0,0.33891968]
[1765805854346,0.001,89326.0,89325.0,0.1150182]
[1765805854554,0.001,89326.0,89325.0,0.35930982]
[1765805854760,0.001,89326.0,89325.0,0.33691968]
[1765805854968,0.001,89326.0,89325.0,0.33991968]
[1765805855960,0.22388237,89333.0,89330.0,0.11124003]
[1765805856164,0.22388409,89332.0,89330.0,0.12254953]
[1765805856363,0.23507643,89333.0,89330.0,0.33569966]
[1765805856571,0.23507643,89333.0,89330.0,0.11181148]
[1765805856772,0.01119369,89336.0,89330.0,0.12300592]
[1765805856986,0.01119357,89337.0,89335.0,0.09486872]
[1765805857186,0.01119357,89337.0,89336.0,0.11124003]
[1765805857472,0.23506101,89339.0,89338.0,0.11124003]
[1765805857882,0.01119319,89340.0,89339.0,0.11124003]
[1765805858079,0.23505708,89340.0,89339.0,0.11124003]
[1765805858451,0.22386227,89341.0,89339.0,0.00045639]
[1765805858638,0.22386227,89341.0,89340.0,0.11124003]
[1765805859223,0.22386138,89341.0,89340.0,0.11124003]
[1765805859429,0.23505193,89342.0,89341.0,0.11124003]
[1765805859632,0.01119269,89344.0,89340.0,0.01164958]
[1765805859633,0.23504735,89344.0,89340.0,0.01164958]
[1765805859968,0.23504735,89344.0,89343.0,0.11124003]
[1765805860555,0.23504735,89344.0,89343.0,0.11169642]
[1765805861155,0.23704735,89344.0,89343.0,0.11169642]
[1765805861534,0.002,89344.0,89343.0,0.11169642]
[1765805861740,0.002,89344.0,89343.0,0.33555279]
[1765805862175,0.22585386,89344.0,89343.0,0.11169642]
[1765805862808,0.22585386,89344.0,89343.0,0.11269642]
[1765805863011,0.22385386,89344.0,89343.0,0.11269642]
[1765805863272,0.22585386,89344.0,89343.0,0.00245639]
[1765805863427,0.002,89344.0,89343.0,0.33755279]
[1765805863617,0.2350424,89346.0,89343.0,0.33755279]
[1765805863618,0.01119244,89346.0,89345.0,0.11124003]
[1765805863814,0.01119231,89347.0,89346.0,0.11124003]
[1765805864014,0.22383576,89352.0,89348.0,0.11124003]
[1765805864015,0.2238357,89352.0,89348.0,0.11124003]
[1765805864216,0.2907,89362.0,89348.0,0.11124003]
[1765805864217,0.23500783,89359.0,89355.0,0.01119131]
[1765805864416,0.23500783,89359.0,89348.0,0.11169642]
[1765805864417,0.23501326,89357.0,89356.0,0.11124003]
[1765805865695,0.23501326,89357.0,89348.0,0.00045639]
[1765805865696,0.23502938,89351.0,89348.0,0.00045639]
[1765805865896,0.22384134,89349.0,89348.0,0.00045639]
[1765805866103,0.22384134,89349.0,89348.0,0.11169642]
[1765805866307,0.01119294,89342.0,89339.0,0.01768]
[1765805866511,0.23505181,89342.0,89341.0,0.11124003]
[1765805867203,0.23505181,89342.0,89331.0,0.22388529]
[1765805867204,0.22387391,89336.0,89331.0,0.22388529]
[1765805867406,0.22387391,89336.0,89335.0,0.22378875]
[1765805868165,0.22387391,89336.0,89335.0,0.20610875]
[1765805868557,0.23506434,89338.0,89335.0,0.09568723]
[1765805868758,0.23506434,89338.0,89337.0,0.11124003]
[1765805870856,0.22387391,89336.0,89335.0,0.09486872]
[1765805871064,0.51457391,89336.0,89335.0,0.09486872]
[1765805871268,0.51457391,89336.0,89335.0,0.09786872]
[1765805871934,0.51457391,89336.0,89335.0,0.09486872]
[1765805872339,0.51557391,89336.0,89335.0,0.09486872]
[1765805873916,0.51857391,89336.0,89335.0,0.09586872]
[1765805874318,0.22787391,89336.0,89335.0,0.09586872]
[1765805874739,0.22787391,89336.0,89335.0,0.09668723]
[1765805880287,0.51857391,89336.0,89335.0,0.09668723]
[1765805889644,0.22787391,89336.0,89335.0,0.09668723]
[1765805894924,0.004,89336.0,89335.0,0.09668723]
[1765805895111,0.004,89336.0,89335.0,0.20792726]
[1765805895699,0.004,89336.0,89335.0,0.43180368]
[1765805896116,0.22687391,89336.0,89335.0,0.20792726]
[1765805896293,0.22387391,89336.0,89335.0,0.20692726]
[1765805896524,0.22346979,89336.0,89335.0,0.20792726]
[1765805896657,0.22546979,89336.0,89335.0,0.20892726]
[1765805896862,0.22546979,89336.0,89335.0,0.00281851]
[1765805906276,0.002,89336.0,89335.0,0.11451493]
[1765805906496,0.002,89336.0,89335.0,0.36077899]
[1765805906717,0.002,89336.0,89335.0,0.33839135]
[1765805908002,0.002,89336.0,89335.0,0.11451493]
[1765805908207,0.22587391,89336.0,89335.0,0.11451493]
[1765805908420,0.002,89336.0,89335.0,0.11451493]
[1765805908854,0.002,89336.0,89335.0,0.33839135]
[1765805909494,0.002,89336.0,89335.0,0.11451493]
[1765805909712,0.22587391,89336.0,89335.0,0.11451493]
[1765805910618,0.002,89336.0,89335.0,0.11451493]
[1765805911034,0.22587391,89336.0,89335.0,0.00281851]
[1765805919428,0.22587391,89336.0,89335.0,0.11405854]
[1765805920094,0.22587391,89336.0,89335.0,0.00281851]
[1765805934381,0.22587391,89336.0,89335.0,0.11405854]
[1765805934601,0.22587391,89336.0,89335.0,0.00281851]
[1765805936606,0.002,89336.0,89335.0,0.00281851]
[1765805936829,0.002,89336.0,89335.0,0.11405854]
[1765805937896,0.002,89336.0,89335.0,0.33793496]
[1765805938083,0.002,89336.0,89335.0,0.11405854]
[1765805938483,0.002,89336.0,89335.0,0.11451493]
[1765805939283,0.22587391,89336.0,89335.0,0.11451493]
[1765805940950,0.22587391,89336.0,89335.0,0.0032749]
[1765805941740,0.22587391,89336.0,89335.0,0.00281851]
[1765805946483,0.22587391,89336.0,89335.0,0.11405854]
[1765805946723,0.002,89336.0,89335.0,0.11405854]
[1765805946896,0.22587391,89336.0,89335.0,0.11405854]
[1765805948230,0.22587391,89336.0,89335.0,0.00281851]
[1765805952817,0.22587391,89336.0,89335.0,0.00181851]
[1765805953852,0.22387391,89336.0,89335.0,0.00081851]
[1765805954270,0.22587391,89336.0,89335.0,0.00181851]
[1765805957851,0.22587391,89336.0,89335.0,0.11305854]
[1765805963626,0.002,89336.0,89335.0,0.11305854]
[1765805963820,0.002,89336.0,89335.0,0.33739135]
[1765805964815,0.002,89336.0,89335.0,0.41794505]
[1765805965027,0.23502577,89352.0,89351.0,0.11124003]
[1765805966700,0.23602577,89352.0,89351.0,0.11224003]
[1765805967171,0.22483408,89352.0,89351.0,0.11324003]
[1765805967387,0.001,89352.0,89351.0,0.13562366]
[1765805968254,0.001,89352.0,89351.0,0.11324003]
[1765805968907,0.22483382,89352.0,89351.0,0.11324003]
[1765805969111,0.001,89352.0,89351.0,0.11324003]
[1765805969358,0.22483382,89352.0,89351.0,0.11324003]
[1765805970388,0.22483382,89352.0,89351.0,0.33707636]
[1765805970389,0.001,89352.0,89351.0,0.33707636]
[1765805971240,0.22483382,89352.0,89351.0,0.11324003]
[1765805971444,0.22483382,89352.0,89351.0,0.33707636]
[1765805971445,0.001,89352.0,89351.0,0.33707636]
[1765805972293,0.001,89352.0,89351.0,0.33753275]
[1765805974428,0.001,89352.0,89351.0,0.33786616]
[1765805977887,0.001,89352.0,89351.0,0.22662613]
[1765805978064,0.001,89352.0,89351.0,0.33786616]
[1765805986429,0.001,89352.0,89351.0,0.11402983]
[1765805987846,0.001,89352.0,89351.0,0.33786616]
[1765805988460,0.001,89352.0,89351.0,0.11402983]
[1765805988993,0.22483382,89352.0,89351.0,0.11402983]
[1765805989981,0.22483382,89352.0,89351.0,0.00233341]
[1765805990186,0.001,89352.0,89351.0,0.00233341]
[1765805990616,0.001,89352.0,89351.0,0.22616974]
[1765805992946,0.001,89352.0,89351.0,0.33740977]
[1765805993157,0.001,89352.0,89351.0,0.11357344]
[1765805993406,0.001,89352.0,89351.0,0.33740977]
[1765806003232,0.001,89352.0,89351.0,0.22662613]
[1765806003474,0.001,89352.0,89351.0,0.33786616]
[1765806005904,0.001,89352.0,89351.0,0.33686616]
[1765806006306,0.001,89352.0,89351.0,0.33886616]
[1765806006608,0.22380143,89365.0,89362.0,0.22380806]
[1765806006808,0.01118981,89367.0,89366.0,0.11124003]
[1765806007112,0.23498606,89367.0,89366.0,0.11124003]
[1765806007581,0.01808,89375.0,89368.0,0.11124003]
[1765806007582,0.02926881,89375.0,89368.0,0.11124003]
[1765806007786,0.02995044,89401.0,89368.0,0.11124003]
[1765806007787,0.01118843,89378.0,89373.0,0.22378048]
[1765806007962,0.01118843,89378.0,89377.0,0.11124003]
[1765806007963,0.23495714,89378.0,89377.0,0.11124003]
[1765806009193,0.01118768,89384.0,89383.0,0.11124003]
[1765806009400,0.23494371,89384.0,89383.0,0.11124003]
[1765806010144,0.23494371,89384.0,89381.0,0.01118806]
[1765806010145,0.23493873,89385.0,89384.0,0.11124003]
[1765806010345,0.0111873,89387.0,89384.0,0.11124003]
[1765806010346,0.22374602,89388.0,89387.0,0.11124003]
[1765806010762,0.22373854,89391.0,89387.0,0.11124003]
[1765806010954,0.23492534,89391.0,89387.0,0.12242733]
[1765806011320,0.0111863,89395.0,89387.0,0.12242733]
[1765806011321,0.0111863,89395.0,89392.0,0.22373182]
[1765806011524,0.0111858,89399.0,89394.0,0.11124003]
[1765806011729,0.0111858,89399.0,89390.0,0.01118693]
[1765806011730,0.0111848,89407.0,89402.0,0.01118543]
[1765806011935,0.01118493,89406.0,89405.0,0.11124003]
[1765806012131,0.23488356,89406.0,89405.0,0.11169642]
[1765806012353,0.01118443,89410.0,89405.0,0.00045639]
[1765806012354,0.01118455,89409.0,89405.0,0.00045639]
[1765806012608,0.22369362,89408.0,89407.0,0.11124003]
[1765806012808,0.23487745,89409.0,89407.0,0.11124003]
[1765806012809,0.22369033,89410.0,89407.0,0.12242483]
[1765806013022,0.22369154,89409.0,89407.0,0.20622381]
[1765806013231,0.0111838,89415.0,89407.0,0.20622381]
[1765806013232,0.44724045,89438.0,89416.0,0.01118368]
[1765806013439,0.44724045,89438.0,89418.0,0.11124003]
[1765806013440,0.22366139,89421.0,89418.0,0.11124003]
[1765806013577,0.22366139,89421.0,89418.0,0.34654811]
[1765806013790,0.22366376,89420.0,89418.0,0.11169642]
[1765806014320,0.23721258,89425.0,89418.0,0.11169642]
[1765806014321,0.01356035,89425.0,89424.0,0.11124003]
[1765806015168,0.0023778,89425.0,89424.0,0.11169642]
[1765806015606,0.0023778,89425.0,89424.0,0.13406178]
[1765806015761,0.0023778,89425.0,89424.0,0.11169642]
[1765806016577,0.0023778,89425.0,89424.0,0.13406178]
[1765806017276,0.0043778,89425.0,89424.0,0.13506178]
[1765806017435,0.0023778,89425.0,89424.0,0.13406178]
[1765806017849,0.0023778,89425.0,89424.0,0.13506178]
[1765806018258,0.0023778,89425.0,89424.0,0.13706178]
[1765806019777,0.0023778,89425.0,89424.0,0.14824333]
[1765806020394,0.0023778,89425.0,89424.0,0.12587797]
[1765806021201,0.0023778,89425.0,89424.0,0.01463794]
[1765806021407,0.0023778,89425.0,89424.0,0.00345639]
[1765806022859,0.2260289,89425.0,89424.0,0.00345639]
[1765806023199,0.2260289,89425.0,89424.0,0.00145639]
[1765806023409,0.2260289,89425.0,89424.0,0.35871538]
[1765806023410,0.0023778,89425.0,89424.0,0.35871538]
[1765806023609,0.0023778,89425.0,89424.0,0.33635002]
[1765806023759,0.0023778,89425.0,89424.0,0.33535002]
[1765806024172,0.0043778,89425.0,89424.0,0.33635002]
[1765806024577,0.0023778,89425.0,89424.0,0.33735002]
[1765806024857,0.0023778,89425.0,89424.0,0.33835002]
[1765806037152,0.0023778,89425.0,89424.0,0.11469642]
[1765806037638,0.2260289,89425.0,89424.0,0.11469642]
[1765806037852,0.2260289,89425.0,89424.0,0.00345639]
[1765806038065,0.2260289,89425.0,89424.0,0.00145639]
[1765806038497,0.2260289,89425.0,89424.0,0.09486872]
[1765806038498,0.23836793,89425.0,89424.0,0.09486872]
[1765806038944,0.24036793,89425.0,89424.0,0.20710875]
[1765806039162,0.23836793,89425.0,89424.0,0.20610875]
[1765806039568,0.24036793,89425.0,89424.0,0.20710875]
[1765806044202,0.23921145,89425.0,89424.0,0.20710875]
[1765806056623,0.23921145,89425.0,89424.0,0.09586872]
[1765806058273,0.23921145,89425.0,89424.0,0.20710875]
[1765806073754,0.23921145,89425.0,89424.0,0.20756514]
[1765806073981,0.0043778,89425.0,89424.0,0.20756514]
[1765806074175,0.0043778,89425.0,89424.0,0.43121874]
[1765806076195,0.0043778,89425.0,89424.0,0.44885874]
[1765806076979,0.0023778,89425.0,89424.0,0.44785874]
[1765806077487,0.0023778,89425.0,89424.0,0.45085874]
[1765806081618,0.0023778,89425.0,89424.0,1.79157713]
[1765806082424,0.0023778,89425.0,89424.0,1.89195183]
[1765806082648,0.0023778,89425.0,89424.0,1.89095183]
[1765806083028,0.0004,89442.0,89441.0,0.33485112]
[1765806083280,0.0004,89442.0,89441.0,0.44781623]
[1765806083476,0.00091452,89442.0,89441.0,0.44781623]
[1765806083871,0.00091452,89442.0,89441.0,0.48137862]
[1765806084329,0.0012975,89442.0,89441.0,0.48337862]
[1765806084760,0.0012975,89442.0,89441.0,0.48437862]
[1765806089131,0.0012975,89442.0,89441.0,0.53439701]
[1765806089819,0.0012975,89442.0,89441.0,1.82509701]
[1765806090202,0.0012975,89442.0,89441.0,1.85243053]
[1765806090660,0.0012975,89442.0,89441.0,1.84943053]
[1765806091040,0.0022975,89442.0,89441.0,1.85943053]
[1765806092807,0.0022975,89442.0,89441.0,0.85943053]
[1765806092966,0.0022975,89442.0,89441.0,1.85943053]
[1765806097975,0.0022975,89442.0,89441.0,0.85943053]
[1765806098257,0.0022975,89442.0,89441.0,1.85943053]
[1765806100929,0.0022975,89442.0,89441.0,1.89306477]
[1765806101136,0.0022975,89442.0,89441.0,1.99313489]
[1765806101308,0.0022975,89442.0,89441.0,1.89306477]
[1765806101712,0.00042635,89442.0,89441.0,1.89306477]
[1765806102544,0.00042635,89442.0,89441.0,1.85943053]
[1765806103630,0.00042635,89442.0,89441.0,1.85343053]
[1765806104167,0.0004,89447.0,89446.0,1.67555701]
[1765806104435,0.0004,89447.0,89446.0,1.67612846]
[1765806104687,0.0004,89447.0,89446.0,1.77627245]
[1765806104906,0.0004,89447.0,89446.0,1.67612846]
[1765806105098,0.0004,89447.0,89446.0,1.70968109]
[1765806105423,0.0004,89447.0,89446.0,1.6596627]
[1765806105664,0.0004,89447.0,89446.0,1.6646627]
[1765806105912,0.0004,89447.0,89446.0,1.71468109]
[1765806106127,0.0014,89447.0,89446.0,1.71768109]
[1765806108008,0.0014,89447.0,89446.0,1.81782508]
[1765806110036,0.0014,89447.0,89446.0,1.71768109]
[1765806110321,0.0014,89447.0,89446.0,1.81782508]
[1765806111118,0.0014,89447.0,89446.0,1.71768109]
[1765806111330,0.0014,89447.0,89446.0,1.81782508]
[1765806112325,0.0014,89447.0,89446.0,1.71768109]
[1765806112522,0.0014,89447.0,89446.0,1.81800648]
[1765806112775,0.0014,89447.0,89446.0,1.71768109]
[1765806113502,0.0014,89447.0,89446.0,1.81800648]
[1765806113715,0.0014,89447.0,89446.0,1.71768109]
[1765806119416,0.0014,89447.0,89446.0,1.81800648]
[1765806119961,0.0014,89447.0,89446.0,1.71768109]
[1765806121045,0.0014,89447.0,89446.0,1.8181864]
[1765806122017,6.32e-05,89447.0,89446.0,1.71768109]
[1765806122235,1.65e-05,89447.0,89446.0,1.75131533]
[1765806122447,0.00024208,89450.0,89449.0,0.67554951]
[1765806122647,0.00024208,89450.0,89449.0,1.6760059]
[1765806123882,0.00024208,89450.0,89449.0,1.70964014]
[1765806124256,0.00024208,89450.0,89449.0,1.74717888]
[1765806125066,0.00024208,89450.0,89449.0,1.75117888]
[1765806125637,0.00024208,89450.0,89449.0,1.75517888]
[1765806126017,0.00024208,89450.0,89449.0,1.6840059]
[1765806126238,0.00024208,89450.0,89449.0,1.82463799]
[1765806126440,0.00024208,89450.0,89449.0,0.82463799]
[1765806126642,0.00024208,89450.0,89449.0,1.82463799]
[1765806128857,0.00024208,89450.0,89449.0,1.6840059]
[1765806130374,6.32e-05,89450.0,89449.0,1.6840059]
[1765806131929,1.32294533,89461.0,89460.0,0.38482202]
[1765806131930,1.17248748,89461.0,89460.0,0.38482202]
[1765806132132,1.17248748,89461.0,89460.0,1.40291841]
[1765806132586,1.17248748,89461.0,89460.0,1.43646999]
[1765806133380,1.17248748,89461.0,89460.0,1.43746999]
[1765806134367,1.17248748,89461.0,89460.0,1.44046999]
[1765806135315,1.17248748,89461.0,89460.0,1.53533871]
[1765806137252,1.17248748,89461.0,89460.0,1.56267481]
[1765806137907,1.17282028,89461.0,89460.0,1.56267481]
[1765806144783,1.17282028,89461.0,89460.0,1.66309629]
[1765806145437,1.17282028,89461.0,89460.0,1.56267481]
[1765806145591,1.17282028,89461.0,89460.0,0.56267481]
[1765806145798,1.17282028,89461.0,89460.0,1.56267481]
[1765806145997,1.17282028,89461.0,89460.0,1.66309629]
[1765806146615,1.17282028,89461.0,89460.0,0.66309629]
[1765806146823,1.17282028,89461.0,89460.0,1.66309629]
[1765806147483,1.17282028,89461.0,89460.0,1.56267481]
[1765806147666,1.17282028,89461.0,89460.0,1.66312932]
[1765806148072,1.17282028,89461.0,89460.0,1.85337481]
[1765806148073,0.32831968,89461.0,89460.0,1.85337481]
[1765806148274,0.14011199,89461.0,89460.0,1.92454779]
[1765806148431,0.0004,89469.0,89460.0,1.92454779]
[1765806148432,0.0004,89469.0,89468.0,0.51424361]
[1765806148638,0.0004,89469.0,89468.0,0.67595842]
[1765806148830,0.0004,89469.0,89468.0,1.67595842]
[1765806149248,0.0004,89469.0,89468.0,1.68043076]
[1765806149656,0.0004,89469.0,89468.0,0.68043076]
[1765806149904,0.0004,89469.0,89468.0,1.68043076]
[1765806150864,0.0004,89481.0,89480.0,1.67547205]
[1765806151068,0.0004,89481.0,89480.0,1.69356844]
[1765806151532,0.0004,89505.0,89504.0,0.38471212]
[1765806151738,0.0004,89505.0,89504.0,1.58226848]
[1765806151940,0.0004,89505.0,89504.0,1.69350851]
[1765806152144,0.0004,89505.0,89504.0,1.70467807]
[1765806152356,0.0004,89505.0,89504.0,1.88148129]
[1765806153697,0.0004,89505.0,89504.0,1.88248129]
[1765806154049,0.00173047,89505.0,89504.0,1.80054679]
[1765806154251,0.00173047,89505.0,89504.0,1.80254679]
[1765806154895,0.00173047,89505.0,89504.0,1.91554196]
[1765806155116,0.00173047,89505.0,89504.0,1.83025499]
[1765806155321,0.00173047,89505.0,89504.0,1.7802366]
[1765806155528,0.00173047,89505.0,89504.0,1.5290747]
[1765806155729,0.00173047,89505.0,89504.0,0.2207347]
[1765806155933,0.00173047,89505.0,89504.0,0.2383747]
[1765806156135,0.00173047,89505.0,89504.0,0.23691831]
[1765806156337,0.00173047,89505.0,89504.0,0.23491831]
[1765806156466,0.00273047,89505.0,89504.0,0.23491831]
[1765806156895,0.00173047,89505.0,89504.0,0.23491831]
[1765806157272,0.00473047,89505.0,89504.0,0.23491831]
[1765806157482,0.00173047,89505.0,89504.0,0.23491831]
[1765806157678,0.00173047,89505.0,89504.0,0.23591831]
[1765806158104,0.00673047,89505.0,89504.0,0.23591831]
[1765806158659,0.00673047,89505.0,89504.0,0.23491831]
[1765806158919,0.00673047,89505.0,89504.0,0.2353747]
[1765806159227,0.00673047,89505.0,89504.0,0.4588284]
[1765806159434,0.00873047,89505.0,89504.0,0.4588284]
[1765806160889,0.00873047,89505.0,89504.0,0.34758837]
[1765806161097,0.23218167,89505.0,89504.0,0.2353747]
[1765806161302,0.23218167,89505.0,89504.0,0.10603828]
[1765806161505,0.23218167,89505.0,89504.0,0.20610875]
[1765806161708,0.23333815,89505.0,89504.0,0.09486872]
[1765806162793,0.23133815,89505.0,89504.0,0.09486872]
[1765806162986,0.23533815,89505.0,89504.0,0.09486872]
[1765806163424,0.23033815,89505.0,89504.0,0.09486872]
[1765806163922,0.23533815,89505.0,89504.0,0.09486872]
[1765806164934,0.23133815,89505.0,89504.0,0.09486872]
[1765806165278,0.23433815,89505.0,89504.0,0.09486872]
[1765806165887,0.23133815,89505.0,89504.0,0.09431906]
[1765806166224,0.23533815,89505.0,89504.0,0.09431906]
[1765806166799,0.23033815,89505.0,89504.0,0.09431906]
[1765806167213,0.23533815,89505.0,89504.0,0.09531906]
[1765806170299,0.23533815,89505.0,89504.0,0.20655909]
[1765806174765,0.23533815,89505.0,89504.0,0.09531906]
[1765806174972,0.23533815,89505.0,89504.0,0.20655909]
[1765806175157,0.23533815,89505.0,89504.0,0.09531906]
[1765806178576,0.52603815,89505.0,89504.0,0.001]
[1765806179572,0.58180808,89505.0,89504.0,0.001]
[1765806179776,0.52603815,89505.0,89504.0,0.001]
[1765806180558,0.52203815,89505.0,89504.0,0.001]
[1765806181006,0.52803815,89505.0,89504.0,0.001]
[1765806181205,0.52803815,89505.0,89491.0,0.09486872]
[1765806181206,0.22348366,89492.0,89491.0,0.09486872]
[1765806182898,0.22648366,89492.0,89491.0,0.09486872]
[1765806183146,0.22648366,89492.0,89475.0,0.11124003]
[1765806183147,0.2346998,89476.0,89475.0,0.11124003]
[1765806183340,0.23469721,89477.0,89476.0,0.11124003]
[1765806183545,0.01117568,89480.0,89477.0,0.11124003]
[1765806183742,0.01117568,89480.0,89479.0,0.11124003]
[1765806184409,0.23468001,89484.0,89481.0,0.11124003]
[1765806184609,0.01117493,89486.0,89485.0,0.11124003]
[1765806184811,0.23467357,89486.0,89485.0,0.11124003]
[1765806186090,0.23567357,89486.0,89485.0,0.11124003]
[1765806186620,0.23567357,89486.0,89485.0,0.11169642]
[1765806187751,0.23467357,89486.0,89485.0,0.11169642]
[1765806188210,0.23567357,89486.0,89485.0,0.11169642]
[1765806188464,0.2234836,89493.0,89485.0,0.11169642]
[1765806188466,0.0004,89505.0,89504.0,0.33469373]
[1765806188666,0.0004,89505.0,89504.0,0.2410937]
[1765806188869,0.0004,89505.0,89504.0,0.35279012]
[1765806189551,0.0004,89505.0,89504.0,0.24155009]
[1765806189936,0.00173047,89505.0,89504.0,0.35279012]
[1765806190588,0.00173047,89505.0,89504.0,0.24155009]
[1765806190795,0.00173047,89505.0,89504.0,0.35279012]
[1765806191201,0.00173047,89505.0,89504.0,1.35479012]
[1765806191401,0.00173047,89505.0,89504.0,1.43495352]
[1765806191704,0.00273047,89505.0,89504.0,1.45265884]
[1765806191899,0.00173047,89505.0,89504.0,1.92745913]
[1765806192099,0.00173047,89505.0,89504.0,1.89992804]